bitfinex-derivatives/quotes_ETHF0:USTF0_20251012
["timestamp","ask_amount","ask_price","bid_price","bid_amount"]
[1760294795984,1.76382,4099.0,4098.3,3.05022071]
[1760294795985,1.76382,4099.0,4098.6,2.17405383]
[1760294796185,1.39832,4098.1,4098.0,2.17405383]
[1760294796387,0.43893,4098.1,4097.7,3.13995383]
[1760294796592,3.2078,4098.4,4097.7,1.40485]
[1760294796789,0.43889,4098.3,4097.8,1.40485]
[1760294796986,1.39831,4098.2,4097.9,0.9659]
[1760294797187,0.43892,4098.1,4097.8,0.00197686]
[1760294797487,0.9594,4098.2,4097.9,0.9659]
[1760294797796,3.2078,4098.4,4098.3,0.43889]
[1760294797999,3.64668,4098.4,4098.2,0.9659]
[1760294798198,0.43892,4098.1,4097.8,0.00197686]
[1760294798490,0.9594,4098.0,4097.9,1.40484]
[1760294798797,0.9594,4098.0,4097.9,0.9659]
[1760294798988,1.39833,4098.0,4097.9,0.9659]
[1760294799188,0.9594,4098.1,4097.9,0.43893]
[1760294799497,1.39834,4097.9,4097.8,0.00197686]
[1760294801895,3.2078,4098.4,4097.8,0.00197686]
[1760294802106,0.43892,4098.1,4097.9,0.43894]
[1760294802299,0.43893,4098.0,4097.9,0.9659]
[1760294802497,1.39833,4098.0,4097.9,0.9659]
[1760294802890,1.39834,4097.9,4097.8,0.00197686]
[1760294803184,1.39844,4096.9,4096.8,3.2078]
[1760294803385,0.9594,4096.6,4096.3,3.2078]
[1760294803588,2.58872842,4096.9,4096.3,3.20882397]
[1760294803790,0.3656,4097.0,4096.3,3.20882397]
[1760294803791,0.9594,4096.4,4096.3,3.20882397]
[1760294803993,0.9594,4096.4,4096.3,0.00102397]
[1760294804190,0.3656,4096.0,4095.1,5.38185383]
[1760294804389,0.3656,4096.0,4094.6,0.9659]
[1760294804390,0.9594,4095.4,4094.6,0.9659]
[1760294804592,0.9594,4095.2,4095.0,0.96716242]
[1760294804799,0.9594,4095.1,4094.7,0.00116703]
[1760294805001,0.9594,4095.0,4094.9,0.00126242]
[1760294805190,0.9594,4095.0,4094.7,0.00123857]
[1760294805701,0.9594,4094.8,4094.7,0.00123857]
[1760294805897,0.9594,4094.8,4094.6,0.00397981]
[1760294806099,0.9594,4094.7,4094.6,0.00397981]
[1760294806300,3.5734,4095.0,4094.6,0.00255041]
[1760294806301,3.2078,4095.0,4094.6,0.00255041]
[1760294806595,0.96136617,4095.4,4095.1,0.00104781]
[1760294806897,0.96136617,4095.4,4095.2,0.00111934]
[1760294807202,0.90436617,4095.4,4095.2,0.92291934]
[1760294808001,0.00196617,4095.4,4095.3,0.92301472]
[1760294808206,1.34149,4096.5,4095.8,0.00100014]
[1760294808394,0.9024,4096.4,4096.1,0.00080948]
[1760294808599,3.2078,4096.6,4095.7,4.1296]
[1760294808600,1.71929,4096.5,4095.7,4.1296]
[1760294808802,1.71929,4096.5,4095.8,0.00111934]
[1760294808803,0.9024,4096.4,4095.8,0.00111934]
[1760294808997,1.3415,4096.4,4095.8,0.00111934]
[1760294809305,0.9024,4096.1,4095.8,0.92291934]
[1760294809604,1.34153,4096.1,4095.8,0.00111934]
[1760294809908,0.00316069,4096.4,4095.8,0.00111934]
[1760294809909,0.9024,4095.9,4095.8,0.00111934]
[1760294810200,1.34153,4096.1,4095.9,0.00088097]
[1760294810400,3.64695,4096.0,4095.5,0.00100014]
[1760294810603,2.54401536,4095.9,4094.9,3.2078]
[1760294810807,0.9024,4095.8,4095.1,0.00119087]
[1760294811105,0.9024,4095.8,4095.0,0.9218]
[1760294811106,0.43916,4095.9,4095.5,0.00092863]
[1760294811300,0.43917,4095.8,4095.5,0.00092863]
[1760294811698,0.9024,4095.7,4095.5,0.00092863]
[1760294811999,0.00316069,4096.4,4096.2,0.43912]
[1760294812204,0.00316069,4096.4,4096.3,0.9218]
[1760294812399,0.00316069,4096.4,4096.2,0.43912]
[1760294812707,0.9024,4096.3,4096.1,0.43913]
[1760294812906,0.00316069,4096.4,4096.2,1.36091]
[1760294813201,0.43916,4095.8,4095.4,0.9218]
[1760294813401,2.72065234,4096.2,4095.7,0.00111934]
[1760294813601,0.01316069,4096.4,4096.2,0.00085713]
[1760294813807,0.9024,4096.3,4096.2,0.00085713]
[1760294814102,0.43912,4096.2,4096.1,0.00088097]
[1760294814406,0.9024,4095.9,4095.5,4.56879]
[1760294814598,2.64138739,4096.3,4095.5,3.2078]
[1760294814599,0.43918,4095.7,4095.5,3.2078]
[1760294814804,0.9024,4095.6,4095.5,3.2087763]
[1760294815905,1.34156,4095.8,4095.7,0.0009763]
[1760294816103,0.9024,4096.3,4095.8,0.00092863]
[1760294816303,0.43914,4096.0,4095.9,0.9227048]
[1760294816606,1.34154,4096.0,4095.8,0.0009048]
[1760294817302,1.34154,4096.0,4095.8,0.9227048]
[1760294817706,0.01316069,4096.4,4096.1,0.92265713]
[1760294818008,0.01316069,4096.4,4095.9,0.00085713]
[1760294818009,0.43913,4096.1,4095.9,0.00085713]
[1760294818198,0.43912,4096.2,4095.7,0.92296703]
[1760294818398,3.2078,4096.3,4095.5,3.2078]
[1760294818607,0.9024,4095.7,4095.6,0.00095246]
[1760294818803,0.9024,4095.6,4095.5,3.2078]
[1760294819009,0.9024,4095.6,4095.5,3.2087763]
[1760294819812,0.9024,4096.3,4096.1,0.9227048]
[1760294820011,0.43912,4096.2,4095.9,0.00102397]
[1760294820309,0.9024,4095.7,4095.5,3.64699]
[1760294820504,0.9024,4095.7,4095.6,0.00111934]
[1760294821309,4.3056,4096.3,4095.6,0.00111934]
[1760294821310,0.9024,4096.2,4096.1,0.00088097]
[1760294821606,0.9024,4096.2,4096.1,0.92268097]
[1760294821804,3.2078,4096.3,4096.2,0.43997713]
[1760294822201,3.2078,4096.3,4095.9,0.9218]
[1760294822202,4.1102,4096.3,4096.0,0.43993948]
[1760294822399,0.9024,4096.2,4096.1,0.43913]
[1760294822605,0.9024,4096.2,4096.1,0.43993948]
[1760294823102,3.2078,4096.3,4095.9,0.43915]
[1760294823103,0.43913,4096.1,4095.9,0.43915]
[1760294823308,1.36653,4096.1,4096.0,0.00092863]
[1760294824004,0.9274,4096.1,4096.0,0.44006863]
[1760294824399,3.2078,4096.3,4096.1,0.97247165]
[1760294824602,0.9274,4096.2,4096.1,0.97247165]
[1760294824802,0.01316069,4096.4,4096.3,1.41139097]
[1760294825008,0.01316069,4096.4,4096.3,1.41051]
[1760294825509,0.94056069,4096.4,4096.3,1.41051]
[1760294825712,0.94056069,4096.4,4096.3,0.43911]
[1760294826102,0.94056069,4096.4,4096.3,0.43991948]
[1760294826407,0.94056069,4096.4,4096.3,0.43911]
[1760294827010,0.01316069,4096.4,4096.3,1.41051]
[1760294828504,3.6468,4097.4,4097.0,1.319]
[1760294828505,3.2078,4097.4,4097.0,1.319]
[1760294828812,3.2078,4097.4,4097.3,1.4104]
[1760294829503,3.20984024,4097.4,4096.6,3.2078]
[1760294829706,0.43905,4096.9,4096.7,0.00088097]
[1760294829905,4.1352,4096.9,4096.3,0.4391]
[1760294830099,4.1352,4096.9,4096.6,0.00088097]
[1760294830309,3.2078,4096.9,4096.8,0.43905]
[1760294830510,0.00204024,4097.4,4097.1,0.9714]
[1760294830705,0.00204024,4097.4,4097.3,1.4104]
[1760294831114,0.92944024,4097.4,4097.3,0.439]
[1760294831816,0.00204024,4097.4,4097.3,1.4104]
[1760294832809,0.00204024,4097.4,4097.3,4.6182]
[1760294833608,3.2078,4098.5,4097.9,0.43894]
[1760294833814,3.2078,4098.5,4098.4,1.41028]
[1760294834013,4.1352,4098.5,4098.4,0.43888]
[1760294834605,4.13775847,4098.5,4098.4,0.44132947]
[1760294835206,0.92995847,4098.5,4098.4,0.44132947]
[1760294836409,4.50565847,4098.5,4098.4,0.00244947]
[1760294836806,4.13775847,4098.5,4098.4,0.00244947]
[1760294837013,4.14775847,4098.5,4098.4,0.00244947]
[1760294837313,4.51565847,4098.5,4098.4,0.00244947]
[1760294837508,0.93995847,4098.5,4098.4,0.97384947]
[1760294837811,0.01255847,4098.5,4098.4,0.97384947]
[1760294838511,0.01255847,4098.5,4096.8,4.02162071]
[1760294838512,0.3679,4098.0,4096.8,4.02162071]
[1760294838699,0.9274,4097.9,4097.1,0.9714]
[1760294838902,0.9274,4097.9,4097.0,0.3476]
[1760294838903,0.9274,4097.8,4097.0,0.43903]
[1760294839104,0.43898,4097.5,4097.1,1.41042]
[1760294839312,0.43898,4097.5,4097.2,0.9714]
[1760294839509,0.43899,4097.4,4097.3,0.9714]
[1760294839705,0.9274,4097.3,4097.2,0.00201013]
[1760294841009,0.9274,4097.3,4097.2,0.00281961]
[1760294841213,0.9274,4097.3,4097.2,0.00201013]
[1760294841907,0.43909,4096.5,4096.4,3.2078]
[1760294842111,0.43911,4096.3,4096.2,0.0008333]
[1760294842311,1.36651,4096.3,4096.2,0.0008333]
[1760294842917,0.9274,4096.3,4096.2,0.00366441]
[1760294843110,0.43909,4096.5,4096.2,0.97506441]
[1760294843431,3.2078,4096.8,4096.2,0.97506441]
[1760294843432,0.43908,4096.6,4096.4,0.0009763]
[1760294843717,1.09756,4097.1,4096.2,0.00283111]
[1760294843718,0.43902,4097.2,4096.9,0.9714]
[1760294844018,0.43902,4097.2,4096.5,3.5588]
[1760294844019,1.36643,4097.1,4096.7,0.43906]
[1760294844205,1.36643,4097.0,4096.5,3.64688]
[1760294844413,0.43906,4096.8,4096.6,0.9714]
[1760294844606,0.43902,4097.2,4096.8,0.0008333]
[1760294844811,0.43905,4096.9,4096.6,0.43907]
[1760294845211,0.43906,4096.8,4096.7,0.0008333]
[1760294845418,0.43906,4096.8,4096.7,0.9714]
[1760294845815,0.9274,4097.1,4096.7,0.9714]
[1760294845816,0.43904,4097.0,4096.7,0.9714]
[1760294846019,0.43905,4096.9,4096.6,0.43907]
[1760294846319,0.9274,4097.7,4097.1,0.9714]
[1760294846523,0.43895,4097.8,4097.1,0.9714]
[1760294846710,0.43895,4097.8,4097.5,0.43898]
[1760294846910,3.2078,4097.9,4097.6,0.43896]
[1760294847121,0.9274,4097.8,4097.2,1.4104]
[1760294847326,1.36637,4097.6,4097.3,1.4104]
[1760294847618,0.9274,4097.5,4097.3,1.4104]
[1760294847821,0.9274,4097.5,4097.3,0.9714]
[1760294847822,0.9274,4097.4,4097.3,0.9714]
[1760294848116,1.36639,4097.5,4097.1,0.43902]
[1760294848312,0.43899,4097.4,4097.1,0.43902]
[1760294848711,0.43899,4097.4,4097.2,0.9714]
[1760294848912,0.43899,4097.4,4097.1,0.43902]
[1760294849115,0.43899,4097.4,4097.2,0.43901]
[1760294849312,4.1352,4097.9,4097.3,1.4104]
[1760294849515,4.1352,4097.9,4097.0,3.2078]
[1760294849516,0.43899,4097.4,4097.1,0.43902]
[1760294849823,0.439,4097.3,4097.2,0.9714]
[1760294850319,0.43897,4097.7,4097.6,0.9714]
[1760294850615,3.2078,4097.9,4097.4,1.41039]
[1760294850616,0.9274,4097.5,4097.4,1.41039]
[1760294850819,0.43895,4097.8,4097.6,1.41037]
[1760294851016,0.3679,4098.0,4097.6,0.9714]
[1760294851216,3.65922847,4098.5,4097.9,0.9714]
[1760294851415,3.22035847,4098.5,4098.2,1.4103]
[1760294851620,3.22035847,4098.5,4098.3,1.41029]
[1760294851814,4.14775847,4098.5,4098.4,0.43888]
[1760294852426,3.22035847,4098.5,4098.4,1.41028]
[1760294852726,0.01255847,4098.5,4098.4,1.41028]
[1760294855816,0.01255847,4098.5,4098.4,0.9714]
[1760294856624,0.01255847,4098.5,4098.4,1.41028]
[1760294857927,0.8714,4099.3,4099.2,0.9221]
[1760294858519,0.8714,4099.8,4099.4,0.43877]
[1760294858717,3.2078,4100.0,4099.8,0.43873]
[1760294858921,3.20960968,4100.0,4099.9,0.9221]
[1760294859121,0.00180968,4100.0,4099.9,0.9221]
[1760294859321,3.2078,4101.0,4100.0,0.351]
[1760294859534,0.8714,4101.0,4100.8,1.36072]
[1760294859719,0.8714,4101.0,4100.8,0.43862]
[1760294860022,0.8714,4101.0,4100.8,0.43863]
[1760294860228,0.8714,4101.2,4100.8,0.43863]
[1760294860427,0.87325159,4101.2,4100.8,0.43863]
[1760294860628,0.87325159,4101.2,4101.1,0.9221]
[1760294860629,0.00185159,4101.2,4101.1,0.9221]
[1760294861722,0.00185159,4101.2,4101.0,0.7862]
[1760294861723,0.00185159,4101.2,4100.7,3.09993684]
[1760294861929,0.43861,4101.0,4100.5,2.50513684]
[1760294862134,0.43863,4100.8,4100.6,0.9221]
[1760294862724,0.43863,4100.8,4100.0,3.5588]
[1760294862725,0.43867,4100.5,4100.1,0.9221]
[1760294863027,0.43867,4100.5,4100.1,0.4387]
[1760294863419,0.43867,4100.4,4100.2,0.8759]
[1760294863725,0.43867,4100.4,4100.1,0.4387]
[1760294864119,0.43867,4100.4,4100.2,0.8759]
[1760294864428,3.5832,4101.0,4100.2,0.43869]
[1760294864626,0.43866,4100.5,4100.1,0.8759]
[1760294864930,0.43866,4100.5,4100.1,0.4387]
[1760294865723,0.43868,4100.3,4100.0,3.99751]
[1760294865927,0.43868,4100.3,4100.1,0.8759]
[1760294866432,0.43868,4100.3,4099.4,0.00228918]
[1760294866433,0.942,4100.1,4099.6,0.8759]
[1760294866636,1.38077,4099.5,4099.4,0.00228918]
[1760294866928,1.38077,4099.5,4099.4,0.87818918]
[1760294867826,1.38077,4099.5,4099.4,0.00228918]
[1760294868226,3.98183937,4099.5,4099.4,0.00228918]
[1760294868534,0.43875,4099.7,4099.4,0.44106918]
[1760294868834,3.2078,4100.2,4100.1,1.3146]
[1760294869924,3.2078,4100.2,4100.1,0.8759]
[1760294870133,0.942,4098.9,4098.5,2.17783684]
[1760294870321,0.43886,4098.7,4098.5,3.2078]
[1760294870525,0.43886,4098.7,4098.6,0.8759]
[1760294871025,0.43886,4098.7,4098.6,0.87817114]
[1760294875642,0.43883,4099.0,4098.6,1.31703114]
[1760294875835,0.4388,4099.2,4098.9,0.8759]
[1760294876135,3.2078,4099.9,4099.3,0.8759]
[1760294876734,0.43874,4099.8,4099.5,0.43876]
[1760294877136,3.5827,4100.5,4099.6,0.8759]
[1760294877336,3.5827,4100.5,4100.1,0.4387]
[1760294877337,0.43867,4100.5,4100.1,0.4387]
[1760294877539,0.43864,4100.7,4100.3,0.43868]
[1760294877838,3.5827,4101.0,4100.0,0.3476]
[1760294877839,0.43866,4100.5,4100.1,0.43869]
[1760294878034,0.43866,4100.5,4100.3,0.8759]
[1760294878230,0.43866,4100.5,4100.2,0.43869]
[1760294878437,0.43867,4100.4,4100.1,0.8759]
[1760294878942,0.43867,4100.4,4100.2,0.43869]
[1760294879142,0.43867,4100.4,4100.3,0.8759]
[1760294879543,0.43865,4100.6,4100.3,0.43868]
[1760294879844,0.942,4100.9,4100.3,0.8759]
[1760294880141,0.43867,4100.5,4100.3,0.8759]
[1760294880344,0.43868,4100.3,4100.2,0.8759]
[1760294880743,0.43867,4100.4,4100.2,0.8759]
[1760294880943,0.43868,4100.3,4100.2,0.8759]
[1760294881339,0.942,4100.9,4100.2,0.8759]
[1760294881541,0.942,4101.4,4100.7,0.8759]
[1760294881746,0.44044159,4101.2,4100.8,0.8759]
[1760294881942,0.00185159,4101.2,4101.1,0.8759]
[1760294883250,0.00185159,4101.2,4101.1,4.0837]
[1760294883451,0.43854,4101.6,4101.5,1.1821]
[1760294883742,0.8842,4102.6,4101.6,0.8628]
[1760294883936,1.32264,4102.6,4102.0,0.3476]
[1760294884141,0.8842,4102.6,4102.0,0.78609]
[1760294884444,0.43848,4102.2,4102.1,0.8628]
[1760294885448,0.43848,4102.2,4102.0,0.00218241]
[1760294885449,0.43846,4102.4,4102.0,0.78827241]
[1760294885648,0.00191239,4102.6,4102.4,0.8628]
[1760294886243,0.00191239,4102.6,4102.3,3.2078]
[1760294886643,0.43845,4102.5,4102.4,0.8628]
[1760294886839,1.32266,4102.4,4102.1,0.8628]
[1760294887044,0.43845,4102.5,4102.1,0.43849]
[1760294887739,0.43845,4102.5,4102.2,0.8628]
[1760294887939,0.8842,4102.4,4102.0,0.86498241]
[1760294888145,0.43848,4102.2,4102.1,0.8628]
[1760294889846,0.43846,4102.4,4102.0,0.44068241]
[1760294890046,0.44034239,4102.6,4102.3,0.43847]
[1760294890255,0.00191239,4102.6,4102.3,0.43847]
[1760294890455,0.00191239,4102.6,4102.5,1.1901]
[1760294891357,0.00191239,4102.6,4102.5,1.62854]
[1760294892653,0.44034239,4102.6,4102.5,0.8628]
[1760294892850,0.00191239,4102.6,4102.5,0.8628]
[1760294893351,0.44034239,4102.6,4102.5,0.8628]
[1760294893550,0.00191239,4102.6,4102.5,1.62854]
[1760294895749,0.00191239,4102.6,4102.5,1.1901]
[1760294895957,0.00191239,4102.6,4102.5,1.62854]
[1760294897250,0.00191239,4102.6,4102.5,1.30124]
[1760294897546,1.32454239,4102.6,4102.5,0.8628]
[1760294897749,0.00191239,4102.6,4102.5,0.8628]
[1760294898154,0.00191239,4102.6,4102.5,1.62854]
[1760294899651,0.00191239,4102.6,4102.4,3.2078]
[1760294899955,0.00191239,4102.6,4102.0,0.34978241]
[1760294900151,0.43846,4102.4,4102.2,0.43848]
[1760294900553,0.43846,4102.4,4102.3,0.8628]
[1760294900858,1.32269,4102.2,4102.1,0.8628]
[1760294902354,0.43849,4102.2,4102.0,0.00218241]
[1760294902653,1.32269,4102.1,4102.0,0.00218241]
[1760294903055,1.32269,4102.1,4102.0,0.86498241]
[1760294903257,0.43847,4102.3,4102.0,0.44068241]
[1760294903444,0.43847,4102.3,4102.2,0.8628]
[1760294904456,0.01,4102.4,4102.3,0.43847]
[1760294904950,0.01,4102.4,4102.3,1.30127]
[1760294906045,0.00191239,4102.6,4102.5,1.62854]
[1760294906247,0.00191239,4102.6,4102.5,4.83634]
[1760294907446,0.00191239,4102.6,4102.5,7.01417684]
[1760294907857,0.00191239,4102.6,4102.5,4.83634]
[1760294908455,0.88611239,4102.6,4102.5,5.38584478]
[1760294908660,0.00191239,4102.6,4102.5,4.0706]
[1760294909552,0.00191239,4102.6,4102.5,4.3979]
[1760294909855,0.00191239,4102.6,4102.5,6.57594478]
[1760294910853,0.00191239,4102.6,4102.5,4.3979]
[1760294911959,0.00191239,4102.6,4102.5,4.83634]
[1760294913657,0.00191239,4102.6,4102.5,7.12390257]
[1760294913958,0.90921239,4102.6,4102.5,4.0849]
[1760294914262,0.90921239,4102.6,4102.5,4.52334]
[1760294914459,0.00191239,4102.6,4102.5,4.52334]
[1760294914659,0.00191239,4102.6,4102.5,4.81954]
[1760294915663,0.00191239,4102.6,4102.5,4.52334]
[1760294916358,2.12771239,4102.6,4102.5,3.2078]
[1760294916862,2.12771239,4102.6,4102.5,3.8117]
[1760294917163,2.12771239,4102.6,4102.5,6.86500257]
[1760294917366,0.00191239,4102.6,4102.5,8.79254257]
[1760294918960,0.00191239,4102.6,4102.5,9.08874257]
[1760294919165,0.00191239,4102.6,4102.5,6.03544]
[1760294922663,4.90374,4103.5,4103.4,2.53135]
[1760294922664,0.9073,4103.5,4103.4,2.53135]
[1760294922967,1.94663,4103.7,4103.6,1.2159]
[1760294923164,10.95889,4103.4,4102.0,0.00218241]
[1760294923368,1.09624,4102.1,4101.7,0.5809]
[1760294923672,0.43854,4101.6,4101.5,0.3686]
[1760294924062,2.99186661,4101.6,4101.5,0.3686]
[1760294924567,2.99441621,4101.6,4101.5,0.37156508]
[1760294924969,6.10287226,4101.6,4101.5,0.00296508]
[1760294925160,6.10287226,4101.6,4101.5,5.08e-06]
[1760294934474,0.43865,4100.6,4100.5,1.2663]
[1760294934662,3.64645,4100.6,4100.5,1.2663]
[1760294934862,6.3326572,4100.6,4100.5,1.2663]
[1760294935066,1.09666,4100.5,4100.0,0.3686]
[1760294935267,3.2078,4100.1,4100.0,1.2904]
[1760294935467,3.6465,4100.1,4100.0,1.29327986]
[1760294935658,6.19212507,4100.1,4100.0,1.29327986]
[1760294935862,6.19212507,4100.1,4100.0,0.37147986]
[1760294937670,6.19212507,4100.1,4100.0,1.29327986]
[1760294937869,3.6465,4100.1,4100.0,2.53377986]
[1760294938164,3.6465,4100.1,4098.9,1.09706]
[1760294938165,0.3686,4099.0,4093.3,12.17824279]
[1760294938366,0.43934,4094.1,4094.0,0.3603]
[1760294938564,3.2078,4094.1,4094.0,0.3603]
[1760294938768,3.2078,4094.1,4094.0,12.06512053]
[1760294938968,3.2078,4094.6,4094.1,0.00150097]
[1760294939172,0.00244094,4094.6,4094.5,0.3603]
[1760294939367,0.00244094,4094.6,4094.5,12.06354796]
[1760294939568,3.2078,4095.7,4094.5,0.6043]
[1760294939773,0.43917,4095.8,4095.5,0.3603]
[1760294939971,3.64697,4095.8,4095.5,0.3603]
[1760294940168,3.64697,4095.8,4095.6,0.244]
[1760294940369,3.64697,4095.8,4095.7,0.9218]
[1760294940569,3.64944291,4095.8,4095.7,0.9218]
[1760294940773,6.45635372,4095.8,4095.7,0.92294318]
[1760294941379,6.45635372,4095.8,4095.7,0.92291934]
[1760294941675,6.45635372,4095.8,4095.7,0.92296703]
[1760294941978,6.45635372,4095.8,4095.7,0.9218]
[1760294942280,6.45635372,4095.8,4095.7,0.92296703]
[1760294942577,6.45635372,4095.8,4095.7,0.6548]
[1760294942767,3.64944291,4095.8,4095.7,0.6548]
[1760294943170,3.64944291,4095.8,4095.7,0.4108]
[1760294943371,1.09796,4095.7,4095.0,0.3603]
[1760294943674,3.64704,4095.1,4095.0,0.3603]
[1760294943875,3.64704,4095.1,4095.0,0.36149087]
[1760294944077,3.2078,4095.1,4095.0,8.85447405]
[1760294944275,0.43917,4095.7,4095.6,0.00104781]
[1760294944674,0.43917,4095.7,4095.6,8.49405483]
[1760294945173,3.21027291,4095.8,4095.7,0.0009763]
[1760294945378,0.00247291,4095.8,4095.7,9.47650702]
[1760294945676,0.00247291,4095.8,4095.7,9.47760251]
[1760294946271,0.43907,4096.7,4095.7,9.47760251]
[1760294946272,3.2078,4097.0,4096.6,0.00080948]
[1760294946476,0.43907,4096.7,4096.6,0.9843333]
[1760294946676,1.28940313,4096.7,4096.6,0.98430948]
[1760294947176,0.85033313,4096.7,4096.6,0.9835]
[1760294947381,0.85348575,4096.7,4096.6,0.9835]
[1760294948082,0.00315262,4096.7,4096.6,0.9835]
[1760294948576,0.00315262,4096.7,4096.6,0.98430948]
[1760294948769,0.00315262,4096.7,4096.6,0.9835]
[1760294950782,0.00315262,4096.7,4096.6,4.1913]
[1760294951178,0.43906,4096.8,4096.6,4.1913]
[1760294951374,0.85935902,4097.6,4097.1,0.9835]
[1760294951581,0.43901,4097.3,4097.2,5.58316411]
[1760294951781,1.27738387,4097.3,4097.2,5.58316411]
[1760294952078,1.27738387,4097.3,4097.2,5.82716411]
[1760294952279,1.27920027,4097.3,4097.2,5.82979597]
[1760294953680,4.48700027,4097.3,4097.2,5.58579597]
[1760294955586,4.48700027,4097.3,4097.2,5.82979597]
[1760294955786,2.55323184,4097.3,4097.2,5.82979597]
[1760294956291,1.27920027,4097.3,4097.2,5.82979597]
[1760294957589,2.12916941,4097.3,4097.2,5.82979597]
[1760294957991,0.84019027,4097.3,4097.2,5.82979597]
[1760294959687,0.78054861,4097.3,4097.2,5.82979597]
[1760294960088,0.0018164,4097.3,4097.2,5.82979597]
[1760294961190,0.77420365,4097.3,4097.2,5.82979597]
[1760294961385,0.43884,4098.9,4098.3,0.43888]
[1760294961586,0.43881,4099.1,4099.0,1.3947]
[1760294962085,3.2078,4099.8,4099.0,1.6387]
[1760294962392,0.00281373,4099.8,4099.5,0.4112]
[1760294962585,0.44155373,4099.8,4099.6,0.9835]
[1760294962789,0.44155373,4099.8,4099.6,1.2275]
[1760294962790,0.00281373,4099.8,4099.6,1.2275]
[1760294962986,0.00281373,4099.8,4099.7,1.2275]
[1760294966887,0.00281373,4099.8,4099.7,0.9835]
[1760294967493,0.00281373,4099.8,4099.7,1.2275]
[1760294972101,0.44154373,4099.8,4099.7,1.2275]
[1760294972601,0.48391468,4099.8,4099.7,1.2275]
[1760294976205,0.48391468,4099.8,4099.7,2.5119]
[1760294976804,1.13821468,4099.8,4099.7,2.2679]
[1760294977002,0.48391468,4099.8,4099.7,2.2679]
[1760294977199,0.48391468,4099.8,4099.7,2.5119]
[1760294978005,1.80871468,4099.8,4099.7,1.6466]
[1760294978197,1.80871468,4099.8,4099.7,2.32]
[1760294978399,0.48391468,4099.8,4099.7,2.564]
[1760294979101,0.48391468,4099.8,4099.7,3.00274]
[1760294979102,0.04518468,4099.8,4099.7,3.00274]
[1760294982705,0.43865,4100.6,4100.5,1.1186]
[1760294983011,0.43865,4100.6,4100.5,6.2758]
[1760294983410,0.43863,4100.8,4100.5,5.2335]
[1760294983708,0.43864,4100.7,4100.6,2.6228]
[1760294984208,0.43864,4100.7,4100.6,2.3788]
[1760294984808,0.44090763,4100.8,4100.7,2.3788]
[1760294985007,0.44090763,4100.8,4100.7,2.6228]
[1760294987614,0.00227763,4100.8,4100.7,2.6228]
[1760294987911,0.00227763,4100.8,4100.7,3.06144]
[1760294988308,0.43858,4101.3,4101.2,1.4303]
[1760294988611,0.43858,4101.3,4101.2,6.41748]
[1760294988815,0.7269,4102.1,4102.0,0.4312]
[1760294989008,1.83819,4102.1,4102.0,2.2439]
[1760294989409,1.84112174,4102.1,4102.0,2.2439]
[1760294990205,1.84112174,4102.1,4102.0,2.9583]
[1760294990417,1.11422174,4102.1,4102.0,2.9583]
[1760294991913,0.44142174,4102.1,4102.0,2.9583]
[1760294992420,0.44142174,4102.1,4102.0,3.2023]
[1760294993019,0.44142174,4102.1,4102.0,3.6408]
[1760294994521,0.00293174,4102.1,4102.0,3.6408]
[1760294994721,0.44142174,4102.1,4102.0,3.6408]
[1760294995215,0.00293174,4102.1,4102.0,3.6408]
[1760294995720,0.43846,4102.4,4102.3,2.5271]
[1760294996622,0.44069057,4102.4,4102.3,2.5271]
[1760294996815,1.84039057,4102.4,4102.3,2.5271]
[1760294997324,1.84039057,4102.4,4102.0,0.4312]
[1760294997325,1.83819,4102.1,4102.0,2.2439]
[1760294998315,0.43849,4102.1,4102.0,2.9583]
[1760294998515,0.00223057,4102.4,4102.1,1.53529]
[1760294998716,0.44069057,4102.4,4102.3,2.7711]
[1760294999117,0.44069057,4102.4,4102.3,2.5271]
[1760295001222,0.00223057,4102.4,4102.3,2.96557]
[1760295002417,0.44069057,4102.4,4102.3,2.5271]
[1760295003126,0.00223057,4102.4,4102.3,2.96557]
[1760295003420,0.4384,4103.0,4102.3,2.5271]
[1760295003623,1.69275,4103.9,4103.8,1.0137]
[1760295003624,2.384,4103.9,4103.8,1.0137]
[1760295003921,1.78703,4103.6,4103.5,2.1279]
[1760295004724,1.78906442,4103.6,4103.5,2.12974561]
[1760295006925,1.78906442,4103.6,4103.5,2.81184561]
[1760295011132,2.38606442,4103.6,4103.5,1.01554561]
[1760295011428,2.38606442,4103.6,4102.6,1.3573]
[1760295011429,0.43843,4102.7,4102.6,1.3573]
[1760295012425,0.43843,4102.7,4102.6,1.35959949]
[1760295013325,0.43843,4102.7,4102.6,2.37329949]
[1760295014327,1.11853,4102.7,4102.6,2.37329949]
[1760295014527,1.7872,4102.0,4101.9,4.8967]
[1760295014732,1.7872,4102.0,4101.9,5.5788]
[1760295015533,1.7872,4102.0,4101.9,5.5814444]
[1760295016028,1.7872,4102.0,4101.9,5.8254444]
[1760295016924,1.7872,4102.0,4101.1,1.09649]
[1760295016925,1.3487,4101.2,4101.1,2.371]
[1760295017139,0.6801,4101.4,4101.3,1.6013]
[1760295017326,0.6801,4101.4,4101.3,2.615]
[1760295017327,1.78726,4101.4,4101.3,2.615]
[1760295017524,2.79756,4101.4,4101.3,2.371]
[1760295017930,2.79756,4101.4,4101.3,2.37374466]
[1760295018926,2.79756,4101.4,4101.3,1.01644466]
[1760295019122,2.79756,4101.4,4101.3,0.00274466]
[1760295019524,1.78726,4101.4,4101.3,2.37374466]
[1760295020936,1.82058282,4101.4,4101.3,2.37374466]
[1760295021736,2.83088282,4101.4,4101.3,1.69164466]
[1760295022935,2.83088282,4101.4,4101.3,0.00274466]
[1760295023139,2.83088282,4101.4,4101.3,4.66e-06]
[1760295023333,1.0103,4100.3,4100.0,1.0137]
[1760295023640,2.7977,4100.1,4100.0,1.6889]
[1760295023830,1.78745,4099.6,4099.5,1.0137]
[1760295024029,2.79775,4099.6,4099.5,1.0137]
[1760295024235,2.79775,4099.6,4099.2,3.2078]
[1760295024236,2.79779,4099.3,4099.2,3.2078]
[1760295024439,2.79784,4098.8,4098.7,3.2078]